{"text_format":"3","workbook":"xlsx","n_sheets":3,"sheets":["PIRLS","ePIRLS","Ark3"],"not_rendered":{"images":2,"defined_names":2},"read":"whole","date_system":"1900"}

{"sheet":"PIRLS","index":0,"n_rows":26,"n_cols":5,"rows_kept":26,"merged":[[3,2,3,4],[5,3,5,4],[8,0,8,4],[10,0,11,0],[10,1,11,1],[10,3,11,3],[10,4,11,4],[19,0,19,4],[21,0,22,0],[21,1,22,1],[21,3,22,3],[21,4,22,4]]}
["PIRLS 2016 MS"]
["Skema for elevsvarprocent"]
[]
[null,"Land:","Danmark"]
[]
["Skolens PIRLS Id:",null,"Skolens navn:"]
[]
[]
["Test-session"]
["(1)","(2)","(3)","(4)","(5)"]
["Klasse ID\n(Klasse navn)","Antal elever til stede","Antal elever der IKKE var til stede, eller som ikke har fået lov til at deltage.","Antal elever \ni klassen\ni alt.\n(Kolonne 2+3)","Svarprocent"]
[null,null,"(Inkluderer ikke elever der har forladt skolen)."]
[{"$nulls":3},{"$f":"B13+C13","v":0},{"$f":"100*(B13/D13)","v":{"$error":"#DIV/0!"}}]
[{"$nulls":3},{"$f":"B14+C14","v":0},{"$f":"100*(B14/D14)","v":{"$error":"#DIV/0!"}}]
[{"$nulls":3},{"$f":"B15+C15","v":0},{"$f":"100*(B15/D15)","v":{"$error":"#DIV/0!"}}]
["Hvis svarprocenten er mindre end 90%, så er det nødvendigt med en opfølgningssession."]
["Hvis den lave svarprocent skyldes at elever ikke har fået lov til at deltage på grund af manglende"]
["tilladelse fra forældrene, så er en opfølgningssession ikke mulig, og derfor heller ikke påkrævet."]
[]
["Opfølgningssession"]
["(1)","(6)","(7)","(8)","(9)"]
["Klasse ID\n(Klasse navn)","Antal elever til stede ved opfølgning","Antal elever der IKKE var til stede ved opfølgning.","Antal testede elever \ni alt.\n(test session + opfølgning)","Samlet svarprocent (testsession + opfølgning)"]
[null,null,"(Inkluderer ikke elever der HAR taget testen, eller som har forladt skolen)."]
[{"$f":"A13","v":0},null,{"$f":"C13-B24","v":0},{"$f":"B24+B13","v":0},{"$f":"100*(D24/D13)","v":{"$error":"#DIV/0!"}}]
[{"$f":"A14","v":0},null,{"$f":"C14-B25","v":0},{"$f":"B25+B14","v":0},{"$f":"100*(D25/D14)","v":{"$error":"#DIV/0!"}}]
[{"$f":"A15","v":0},null,{"$f":"C15-B26","v":0},{"$f":"B26+B15","v":0},{"$f":"100*(D26/D15)","v":{"$error":"#DIV/0!"}}]

{"sheet":"ePIRLS","index":1,"n_rows":26,"n_cols":5,"rows_kept":26,"merged":[[3,2,3,4],[5,3,5,4],[8,0,8,4],[10,0,11,0],[10,1,11,1],[10,3,11,3],[10,4,11,4],[19,0,19,4],[21,0,22,0],[21,1,22,1],[21,3,22,3],[21,4,22,4]]}
["ePIRLS 2016 MS"]
["Skema for elevsvarprocent"]
[]
[null,"Land:","Danmark"]
[]
["Skolens PIRLS Id:",{"$f":"PIRLS!B6","v":0},"Skolens navn:",{"$f":"PIRLS!D6","v":0}]
[]
[]
["Test-session"]
["(1)","(2)","(3)","(4)","(5)"]
["Klasse ID\n(Klasse navn)","Antal elever til stede","Antal elever der IKKE var til stede, eller som ikke har fået lov til at deltage.","Antal elever \ni klassen\ni alt.\n(Kolonne 2+3)","Svarprocent"]
[null,null,"(Inkluderer ikke elever der har forladt skolen)."]
[{"$nulls":3},{"$f":"B13+C13","v":0},{"$f":"100*(B13/D13)","v":{"$error":"#DIV/0!"}}]
[{"$nulls":3},{"$f":"B14+C14","v":0},{"$f":"100*(B14/D14)","v":{"$error":"#DIV/0!"}}]
[{"$nulls":3},{"$f":"B15+C15","v":0},{"$f":"100*(B15/D15)","v":{"$error":"#DIV/0!"}}]
["Hvis svarprocenten er mindre end 90%, så er det nødvendigt med en opfølgningssession."]
["Hvis den lave svarprocent skyldes at elever ikke har fået lov til at deltage på grund af manglende"]
["tilladelse fra forældrene, så er en opfølgningssession ikke mulig, og derfor heller ikke påkrævet."]
[]
["Opfølgningssession"]
["(1)","(6)","(7)","(8)","(9)"]
["Klasse ID\n(Klasse navn)","Antal elever til stede ved opfølgning","Antal elever der IKKE var til stede ved opfølgning.","Antal testede elever \ni alt.\n(test session + opfølgning)","Samlet svarprocent (testsession + opfølgning)"]
[null,null,"(Inkluderer ikke elever der HAR taget testen, eller som har forladt skolen)."]
[{"$f":"A13","v":0},null,{"$f":"C13-B24","v":0},{"$f":"B24+B13","v":0},{"$f":"100*(D24/D13)","v":{"$error":"#DIV/0!"}}]
[{"$f":"A14","v":0},null,{"$f":"C14-B25","v":0},{"$f":"B25+B14","v":0},{"$f":"100*(D25/D14)","v":{"$error":"#DIV/0!"}}]
[{"$f":"A15","v":0},null,{"$f":"C15-B26","v":0},{"$f":"B26+B15","v":0},{"$f":"100*(D26/D15)","v":{"$error":"#DIV/0!"}}]

{"sheet":"Ark3","index":2,"n_rows":0,"n_cols":0,"rows_kept":0}